fUST/lending_fUST_20250827
["ID","MTS","AMOUNT","RATE_DAILY","PERIOD"]
[381544164,1756275702185,-323.972133,0.00023911,2]
[381544165,1756275702194,-160.0,0.00024225,2]
[381544166,1756275702204,-566.79937517,0.00024324,2]
[381544167,1756275702213,-578.74185252,0.00024324,2]
[381544168,1756275702222,-2351.0,0.00024514,2]
[381544169,1756275702232,-260.0,0.00024773,2]
[381544170,1756275702241,-712.08458009,0.0002499,2]
[381544171,1756275811683,6126.7887136,0.000199,2]
[381544173,1756275908198,-5000.0,0.00020777,2]
[381544174,1756275908265,-160.05219765,0.00021527,2]
[381544175,1756275908298,-300.0,0.00021626,2]
[381544176,1756275908332,-1151.0,0.00021626,2]
[381544177,1756275908370,-651.11689136,0.00021627,2]
[381544178,1756275908464,-4524.33817802,0.00021627,2]
[381544179,1756275908693,-951.33364396,0.00021627,2]
[381544180,1756275908726,-181.31248778,0.000222,69]
[381544181,1756275908760,-341.5231711,0.00022419,2]
[381544182,1756275908792,-500.0,0.00022533,2]
[381544183,1756275908825,-500.0,0.00022533,2]
[381544184,1756275908859,-500.0,0.00022533,2]
[381544185,1756275908892,-554.163731,0.0002279,2]
[381544186,1756275909031,-4172.81541695,0.0002282,2]
[381544187,1756275909064,-286.39146236,0.00022873,2]
[381544188,1756275909099,-58.23208738,0.00022904,2]
[381544189,1756275909496,-965.13206662,0.00022904,2]
[381544190,1756275909528,-160.0,0.00023,2]
[381544191,1756275909693,-1815.11148706,0.00023,2]
[381544192,1756275909719,-286.39146236,0.00023,2]
[381544193,1756275909736,-1023.364154,0.00023,2]
[381544194,1756275909787,-500.0,0.00022533,2]
[381544195,1756275909901,-465.13206662,0.00023,2]
[381544196,1756275909923,-160.0,0.00023,2]
[381544197,1756275909941,-7749.74586676,0.00023,2]
[381544198,1756275909971,-10000.01,0.00023,2]
[381544199,1756275910019,-4014.08275504,0.00023,2]
[381544200,1756275910051,-160.0,0.00023067,2]
[381544201,1756275910088,-713.32056111,0.00023081,2]
[381544202,1756275910176,-225.2033677,0.00023081,2]
[381544203,1756275910186,-500.0,0.00023081,2]
[381544204,1756275910195,-500.0,0.00023081,2]
[381544205,1756275910204,-3387.40331615,0.00023353,2]
[381544206,1756275910233,-2739.38539719,0.00023353,2]
[381544207,1756275910242,-420.0,0.00023509,2]
[381544208,1756275910251,-260.0,0.00023615,2]
[381544209,1756275910261,-360.0,0.00024163,2]
[381544210,1756275910271,-918.52866651,0.00024422,2]
[381544211,1756275910280,-460.0,0.00024711,2]
[381544212,1756275910290,-160.05219765,0.00024908,2]
[381544213,1756275910299,-500.0,0.00024973,2]
[381544214,1756275910309,-500.0,0.00024973,2]
[381544215,1756275910319,-500.0,0.00024973,2]
[381544216,1756275910329,-500.0,0.00024973,2]
[381544217,1756275910339,-212.64944664,0.00024973,2]
[381544218,1756275910349,-1200.0,0.00024989,2]
[381544219,1756275910586,-500.0,0.00024989,2]
[381544220,1756275910596,-500.0,0.00024989,2]
[381544221,1756275910607,-269.39429201,0.00024989,2]
[381544222,1756275910646,-230.60570799,0.00024989,2]
[381544223,1756275910656,-500.0,0.00024989,2]
[381544224,1756275910667,-500.0,0.00024989,2]
[381544225,1756275910677,-291.57522552,0.00024989,2]
[381544226,1756275910689,-500.0,0.00024989,2]
[381544227,1756275910699,-500.0,0.00024989,2]
[381544228,1756275910710,-200.0,0.00024989,2]
[381544229,1756275910720,-1291.90182153,0.0002499,2]
[381544230,1756275910743,-160.0,0.0002499,2]
[381544231,1756275910778,-938.52392881,0.0002499,2]
[381544232,1756275986609,7266.55928047,0.000199,2]
[381544233,1756276071580,10000.01,0.00018,2]
[381544234,1756276071607,10000.01,0.00018,2]
[381544235,1756276071632,10000.01,0.00018,2]
[381544236,1756276071657,10000.01,0.00018,2]
[381544237,1756276071681,10000.01,0.00018,2]
[381544238,1756276071706,10000.01,0.00018,2]
[381544239,1756276071731,10000.01,0.00018,2]
[381544240,1756276071755,9050.29612414,0.00018,2]
[381544242,1756276106242,204.41350146,0.000176,2]
[381544243,1756276114592,763.08931204,0.0002,2]
[381544244,1756276116562,9236.92068796,0.00017,2]
[381544245,1756276116586,10000.01,0.00017,2]
[381544246,1756276116611,10000.01,0.00017,2]
[381544247,1756276116635,10000.01,0.00017,2]
[381544248,1756276116660,10000.01,0.00017,2]
[381544249,1756276116684,10000.01,0.00017,2]
[381544250,1756276116709,2639.69845272,0.00017,2]
[381544251,1756276119136,7360.31154728,0.0002,2]
[381544252,1756276119164,4711.91970528,0.0002,2]
[381544253,1756276120052,-5000.0,0.00021196,2]
[381544254,1756276120283,-5000.0,0.0002141,2]
[381544255,1756276120488,159.25216296,0.0002,2]
[381544256,1756276120546,-2733.45071974,0.00021627,2]
[381544257,1756276120932,-4533.10856052,0.00021627,2]
[381544258,1756276120963,-160.0,0.00023,2]
[381544259,1756276121036,-1200.0,0.00023352,2]
[381544260,1756276121069,-300.0,0.00023352,2]
[381544261,1756276121193,-2733.45071974,0.00023353,2]
[381544262,1756276121397,-4533.10856052,0.00023353,2]
[381544263,1756276121683,-1674.3921212,0.00023424,2]
[381544265,1756276121715,-689.49820324,0.00024197,2]
[381544268,1756276121745,-157.9026632,0.00024262,2]
[381544270,1756276121776,-160.0,0.00024633,2]
[381544271,1756276121807,-440.74134212,0.00024774,2]
[381544273,1756276121881,-3754.94134048,0.00024774,2]
[381544274,1756276121915,-500.0,0.00024907,2]
[381544275,1756276121951,-500.0,0.00024907,2]
[381544276,1756276122159,-500.0,0.00024907,2]
[381544277,1756276122195,-594.10265787,0.00024907,2]
[381544278,1756276122231,-500.0,0.00024907,2]
[381544279,1756276122266,-500.0,0.00024907,2]
[381544280,1756276122298,-1924.58159279,0.00024908,2]
[381544281,1756276125743,211.88227648,0.00016,2]
[381544282,1756276125897,4916.95585528,0.0002,2]
[381544283,1756276125922,7539.11687487,0.0002,2]
[381544284,1756276128687,29324.10698776,0.0002,2]
[381544285,1756276130181,-300.0,0.00024907,2]
[381544286,1756276130215,-1962.64149868,0.00024908,2]
[381544287,1756276140248,-5000.0,0.0002474,2]
[381544288,1756276141420,-5235.89425886,0.0002499,2]
[381544289,1756276142520,-300.0,0.00024989,2]
[381544290,1756276142563,-9400.01,0.0002499,2]
[381544291,1756276142673,-10000.01,0.0002499,2]
[381544292,1756276142820,-10000.01,0.0002499,2]
[381544294,1756276150175,-5000.0,0.0002474,2]
[381544295,1756276150218,-0.01,0.0002499,2]
[381544296,1756276150336,-3288.3099853,0.0002499,2]
[381544297,1756276150378,-3423.3900294,0.00025,2]
[381544298,1756276150553,-2898.70941912,0.00025,2]
[381544299,1756276150583,-314.41551377,0.00025,2]
[381544300,1756276150626,-3573.76013422,0.00025,2]
[381544301,1756276150747,-10000.01,0.00025,2]
[381544302,1756276150894,-10000.01,0.00025,2]
[381544303,1756276151070,-10000.01,0.00025,2]
[381544304,1756276151138,-206.03332133,0.00025,2]
[381544305,1756276151171,-10000.01,0.00025,2]
[381544306,1756276151373,-10000.01,0.00025,2]
[381544307,1756276151492,-10000.01,0.00025,2]
[381544308,1756276151654,-4165.86922919,0.00025,2]
[381544309,1756276151685,-288.09008906,0.00025,2]
[381544310,1756276151715,-366.77939343,0.00025005,2]
[381544311,1756276151792,-358.53257664,0.00025005,2]
[381544312,1756276162652,7854.92016181,0.000199,2]
[381544313,1756276231646,303.35238575,0.000199,2]
[381544386,1756276232813,-663.87940033,0.00020563,2]
[381544389,1756276232828,-4233.88398524,0.00020563,2]
[381544391,1756276232840,-1776.99193105,0.00021527,2]
[381544393,1756276232852,-300.0,0.00021626,2]
[381544395,1756276232864,-300.0,0.00021626,2]
[381544397,1756276232876,-300.0,0.00021626,2]
[381544399,1756276232887,-300.0,0.00021626,2]
[381544401,1756276232900,-300.0,0.00021626,2]
[381544403,1756276232912,-1200.0,0.00021626,2]
[381544405,1756276232924,-5839.39783134,0.00021627,2]
[381544406,1756276232948,-1603.15313432,0.00021627,2]
[381544407,1756276232962,-412.36919611,0.00021627,2]
[381544408,1756276232975,-182.85331554,0.00022529,2]
[381544409,1756276232988,-897.37747835,0.00023353,2]
[381544410,1756276233014,-6957.54268342,0.00023353,2]
[381544411,1756276233026,-420.0,0.00023509,2]
[381544412,1756276233038,-240.0,0.00023509,2]
[381544414,1756276233051,-420.0,0.00023509,2]
[381544416,1756276233064,-480.0,0.0002362,2]
[381544418,1756276233077,-967.048035,0.00024137,2]
[381544420,1756276233090,-5000.0,0.00024507,2]
[381544422,1756276233103,-160.0,0.00024625,2]
[381544424,1756276233116,-500.0,0.00024754,2]
[381544426,1756276233129,-500.0,0.00024754,2]
[381544428,1756276233141,-5000.0,0.00024755,2]
[381544430,1756276233153,-160.0,0.00024755,2]
[381544432,1756276233166,-5000.0,0.00024897,2]
[381544433,1756276233179,-2183.31810187,0.00024985,2]
[381544435,1756276233191,-1107.11787951,0.00025005,2]
[381544437,1756276233204,-7854.92016177,0.0002508,2]
[381544439,1756276233216,-260.0,0.00025173,2]
[381544441,1756276233228,-216.14835892,0.00025208,2]
[381544443,1756276233241,-845.298898,0.00025208,2]
[381544444,1756276233253,-217.23771399,0.00025208,2]
[381544446,1756276233265,-160.0,0.00025208,2]
[381544448,1756276233278,-160.0,0.00025208,2]
[381544450,1756276233291,-425.44119842,0.00025208,2]
[381544452,1756276233316,-232.59867797,0.00025208,2]
[381544454,1756276233328,-160.0,0.0002532,2]
[381544456,1756276233339,-160.0,0.0002532,2]
[381544457,1756276233348,-160.0,0.0002532,2]
[381544459,1756276233358,-26947.87267154,0.00025338,2]
[381544461,1756276233370,-1138.80134258,0.00025338,2]
[381544463,1756276233381,-470.62387527,0.00025338,2]
[381544465,1756276233393,-4149.02904925,0.00025338,2]
[381544466,1756276233404,-1125.35904746,0.00025338,2]
[381544748,1756276238320,-5000.0,0.00024506,2]
[381544750,1756276238330,-500.0,0.00024754,2]
[381544752,1756276238339,-575.8718605,0.00024754,2]
[381544754,1756276238351,-416.9836279,0.00025338,2]
[381544756,1756276238360,-908.0,0.00025341,2]
[381544758,1756276238369,-2642.95761868,0.00025348,2]
[381544760,1756276238379,-1934.01,0.00025348,10]
[381544763,1756276238391,-1611.67,0.00025348,10]
[381544764,1756276238402,-13273.69268152,0.00025358,2]
[381544768,1756276238426,-9608.00047543,0.00025358,2]
[381544770,1756276238435,-435.33,0.00025438,3]
[381544772,1756276238444,-915.05,0.00025438,3]
[381544774,1756276238454,-457.52,0.00025438,3]
[381544776,1756276238463,-228.76,0.00025438,3]
[381544778,1756276238472,-686.32,0.00025438,3]
[381544780,1756276238482,-259.10691283,0.00025443,2]
[381544782,1756276238492,-201.93286099,0.00025443,2]
[381544784,1756276238501,-151.0,0.00025443,2]
[381544786,1756276238511,-151.0,0.00025443,2]
[381544788,1756276238520,-151.0,0.00025443,2]
[381544790,1756276238529,-151.0,0.00025443,2]
[381544792,1756276238538,-151.0,0.00025443,2]
[381544794,1756276238547,-151.0,0.00025443,2]
[381544796,1756276238557,-151.0,0.00025443,2]
[381544798,1756276238566,-151.0,0.00025443,2]
[381544799,1756276238575,-151.0,0.00025443,2]
[381544800,1756276238584,-151.0,0.00025443,2]
[381544801,1756276238593,-151.0,0.00025443,2]
[381544803,1756276238603,-151.0,0.00025443,2]
[381544805,1756276238612,-151.0,0.00025443,2]
[381544807,1756276238621,-569.00676989,0.00025443,2]
[381544809,1756276238630,-239740.687298,0.00025448,2]
[381544811,1756276238639,-370000.0,0.00025458,2]
[381544813,1756276238650,-150.0,0.00025473,2]
[381544815,1756276238659,-500.0,0.00025473,2]
[381544817,1756276238668,-500.0,0.00025473,2]
[381544819,1756276238677,-500.0,0.00025473,2]
[381544821,1756276238686,-500.0,0.00025473,2]
[381544823,1756276238696,-500.0,0.00025473,2]
[381544825,1756276238705,-173.70079383,0.00025473,2]
[381544827,1756276238714,-500.0,0.00025473,2]
[381544829,1756276238724,-366.24060527,0.00025473,2]
[381544831,1756276238733,-500.0,0.00025473,2]
[381544833,1756276238743,-500.0,0.00025473,2]
[381544835,1756276238752,-500.0,0.00025473,2]
[381544837,1756276238761,-244.0,0.00025473,2]
[381544839,1756276238770,-500.0,0.00025473,2]
[381544841,1756276238780,-500.0,0.00025473,2]
[381544843,1756276238789,-500.0,0.00025473,2]
[381544845,1756276238798,-500.0,0.00025473,2]
[381544847,1756276238808,-505.63467787,0.00025473,2]
[381544849,1756276238817,-12598.49,0.000255,2]
[381544851,1756276238827,-219.30172,0.000255,2]
[381544852,1756276238836,-61528.86,0.000255,7]
[381544853,1756276238846,-216.14835892,0.000255,7]
[381544854,1756276238856,-4120.69,0.000255,7]
[381544855,1756276238866,-425.44119842,0.000255,7]
[381544856,1756276238875,-232.59867797,0.000255,7]
[381544857,1756276238884,-160.0,0.00025511,2]
[381544858,1756276238894,-12707.75045307,0.00025518,2]
[381544859,1756276238904,-587.0,0.00025556,2]
[381544860,1756276238913,-360.0,0.00025721,2]
[381544861,1756276238923,-275.294,0.00025852,11]
[381544862,1756276238933,-219.30172,0.00025885,2]
[381544863,1756276238942,-2642.95761865,0.00025928,2]
[381544864,1756276238952,-350.0,0.00026021,2]
[381544865,1756276238961,-500.0,0.00026021,2]
[381544866,1756276238971,-500.0,0.00026021,2]
[381544867,1756276238980,-500.0,0.00026021,2]
[381544868,1756276238990,-513.55674702,0.00026021,2]
[381544869,1756276239000,-1000.0,0.00026021,2]
[381544870,1756276239010,-500.0,0.00026021,2]
[381544871,1756276239021,-1000.0,0.00026021,2]
[381544872,1756276239030,-615.05498527,0.00026021,2]
[381544873,1756276239041,-1000.0,0.00026021,2]
[381544874,1756276239051,-2264.9303032,0.00026117,2]
[381544875,1756276239061,-2312.65244265,0.00026117,2]
[381544876,1756276239070,-554.163731,0.00026215,2]
[381544877,1756276239079,-460.0,0.00026269,2]
[381544878,1756276239089,-219.30172,0.0002627,2]
[381544879,1756276239099,-151.0,0.000263,17]
[381544880,1756276239108,-129621.95274092,0.00026362,2]
[381544881,1756276239118,-500.0,0.00026373,2]
[381544882,1756276239129,-500.0,0.00026373,2]
[381544883,1756276239141,-500.0,0.00026373,2]
[381544884,1756276239152,-500.0,0.00026373,2]
[381544885,1756276239161,-500.0,0.00026373,2]
[381544886,1756276239171,-500.0,0.00026373,2]
[381544887,1756276239181,-413.95211664,0.00026373,2]
[381544888,1756276239190,-500.0,0.00026373,2]
[381544889,1756276239199,-500.0,0.00026373,2]
[381544890,1756276239209,-500.0,0.00026373,2]
[381544891,1756276239218,-510.45820748,0.00026373,2]
[381544892,1756276239228,-500.0,0.00026373,2]
[381544893,1756276239237,-500.0,0.00026373,2]
[381544894,1756276239246,-500.0,0.00026373,2]
[381544895,1756276239256,-500.0,0.00026373,2]
[381544896,1756276239266,-501.60943853,0.00026373,2]
[381544897,1756276239275,-2642.95761865,0.00026508,2]
[381544898,1756276239285,-1000.0,0.00026568,2]
[381544899,1756276239294,-1500.0,0.00026568,2]
[381544900,1756276239304,-1500.0,0.00026568,2]
[381544901,1756276239317,-219.30172,0.00026655,2]
[381544902,1756276239326,-354.02864,0.00026676,2]
[381544903,1756276239336,-151.0,0.000267,19]
[381544904,1756276239345,-7854.92016177,0.00026806,6]
[381544905,1756276239354,-870.66,0.00026808,3]
[381544906,1756276239363,-1830.1,0.00026808,3]
[381544907,1756276239373,-915.04,0.00026808,3]
[381544908,1756276239382,-457.52,0.00026808,3]
[381544909,1756276239391,-209.40437684,0.00026812,2]
[381544910,1756276239401,-560.0,0.00026817,2]
[381544911,1756276239410,-1000.0,0.00026921,2]
[381544912,1756276239419,-1000.0,0.00026921,2]
[381544913,1756276239429,-1000.0,0.00026921,2]
[381544914,1756276239439,-506.92283959,0.00026921,2]
[381544915,1756276239448,-500.0,0.00026921,2]
[381544916,1756276239458,-1000.0,0.00026921,2]
[381544917,1756276239467,-500.0,0.00026921,2]
[381544918,1756276239477,-500.0,0.00026921,2]
[381544919,1756276239486,-1000.0,0.00026921,2]
[381544920,1756276239496,-417.15472785,0.00027,3]
[381544921,1756276239505,-417.15472785,0.00027,3]
[381544922,1756276239515,-425.44119842,0.00027,3]
[381544923,1756276239524,-425.44119842,0.00027,3]
[381544924,1756276239533,-219.30172,0.0002704,2]
[381544925,1756276239543,-150.648885,0.0002704,2]
[381544926,1756276239552,-2642.95761865,0.00027087,2]
[381544927,1756276239561,-151.0,0.000271,20]
[381544928,1756276239571,-4120.69,0.000271,7]
[381544929,1756276239581,-1937.37723385,0.00027116,2]
[381544930,1756276239591,-2000.0,0.00027116,2]
[381544931,1756276239600,-3670.44055138,0.00027149,2]
[381544932,1756276239609,-250.0,0.00027171,2]
[381544933,1756276239619,-500.0,0.00027173,2]
[381544934,1756276239628,-61528.86,0.000272,7]
[381544935,1756276239637,-425.44119842,0.000272,7]
[381544936,1756276239647,-151.0,0.000273,10]
[381544937,1756276239656,-660.0,0.00027365,2]
[381544938,1756276239665,-500.0,0.00027397,5]
[381544939,1756276239675,-6989.83,0.000274,7]
[381544940,1756276239684,-556.0,0.00027431,2]
[381544941,1756276239693,-198.0,0.00027431,2]
[381544942,1756276239703,-151.0,0.00027431,2]
[381544943,1756276239712,-2755.23482016,0.00027454,2]
[381544944,1756276239722,-283.0,0.00027468,7]
[381544945,1756276239731,-1500.0,0.00027468,2]
[381544946,1756276239740,-1500.0,0.00027468,5]
[381544947,1756276239750,-1500.0,0.00027468,5]
[381544948,1756276239760,-1500.0,0.00027468,5]
[381544949,1756276239769,-150.0,0.00027473,5]
[381544950,1756276239779,-501.38748469,0.00027473,5]
[381544951,1756276239788,-500.0,0.00027473,5]
[381544952,1756276239798,-501.31286115,0.00027473,5]
[381544953,1756276239808,-500.0,0.00027493,5]
[381544954,1756276239817,-151.0,0.000275,16]
[381544955,1756276239827,-219.30172,0.000275,20]
[381544956,1756276239837,-43622.98647844,0.000275,2]
[381544957,1756276239846,-2000.0,0.00027664,5]
[381544958,1756276239855,-2642.95761865,0.00027667,2]
[381544959,1756276239865,-283.0,0.00027673,7]
[381544960,1756276239874,-283.0,0.00027691,2]
[381544961,1756276239884,-12598.49,0.000277,2]
[381544962,1756276239893,-556.0,0.00027705,2]
[381544963,1756276239903,-151.0,0.00027705,2]
[381544964,1756276239912,-1000.0,0.00027721,5]
[381544965,1756276239922,-823.0,0.00027781,2]
[381544966,1756276239931,-283.0,0.00027821,2]
[381544967,1756276239940,-283.0,0.0002786,2]
[381544973,1756276240124,-283.0,0.00027861,2]
[381544974,1756276240144,-151.0,0.000279,16]
[381544975,1756276240154,-760.0,0.00027913,2]
[381544976,1756276240163,-556.0,0.00027979,2]
[381544977,1756276240172,-151.0,0.00027979,2]
[381544978,1756276240182,-417.15472785,0.00028,10]
[381544979,1756276240192,-367.83889168,0.00028,120]
[381544980,1756276240202,-425.44119842,0.00028,10]
[381544981,1756276240212,-2000.0,0.00028016,2]
[381544982,1756276240222,-1304.27150365,0.00028016,5]
[381544983,1756276240231,-2000.0,0.00028016,5]
[381544984,1756276240242,-2000.0,0.00028016,5]
[381544985,1756276240252,-250.0,0.00028021,5]
[381544986,1756276240262,-876.36550444,0.00028021,5]
[381544987,1756276240272,-219.30172,0.00028021,20]
[381544988,1756276240282,-889.78081344,0.00028041,5]
[381544989,1756276240291,-484.0,0.00028176,7]
[381544990,1756276240301,-217.15233878,0.00028181,2]
[381544991,1756276240314,-292.30584357,0.00028182,2]
[381544992,1756276240323,-283.0,0.00028238,2]
[381544993,1756276240333,-556.0,0.00028253,2]
[381544994,1756276240343,-151.0,0.00028253,2]
[381544995,1756276240354,-1000.0,0.00028268,5]
[381544996,1756276240363,-22881.69315694,0.00028394,2]
[381544997,1756276240373,-151.0,0.000284,12]
[381544998,1756276240383,-860.0,0.00028461,2]
[381544999,1756276240392,-4120.69,0.000285,7]
[381545000,1756276240402,-556.0,0.00028527,2]
[381545001,1756276240411,-151.0,0.00028527,2]
[381545002,1756276240420,-216.14835892,0.00028533,10]
[381545003,1756276240429,-7854.92016177,0.00028533,10]
[381545004,1756276240438,-219.30172,0.00028542,20]
[381545005,1756276240447,-283.0,0.00028542,2]
[381545006,1756276240457,-500.03069539,0.00028564,2]
[381545007,1756276240466,-1000.0,0.00028564,5]
[381545008,1756276240477,-2500.0,0.00028564,5]
[381545009,1756276240487,-350.0,0.00028568,5]
[381545010,1756276240496,-484.0,0.00028603,2]
[381545011,1756276240506,-61528.86,0.000287,7]
[381545012,1756276240515,-162.06972335,0.00028775,5]
[381545013,1756276240524,-163.3,0.00028799,15]
[381545014,1756276240534,-166.72,0.00028799,15]
[381545015,1756276240544,-535.65,0.00028799,15]
[381545016,1756276240554,-151.0,0.000288,11]
[381545017,1756276240563,-6989.83,0.000288,7]
[381545018,1756276240573,-168.1641378,0.000288,7]
[381545019,1756276240582,-556.0,0.00028801,2]
[381545020,1756276240591,-151.94225115,0.00028801,2]
[381545021,1756276240601,-283.0,0.00028826,2]
[381545022,1756276240611,-163.3,0.00028899,15]
[381545023,1756276240620,-166.72180674,0.00028899,15]
[381545024,1756276240630,-535.65,0.00028899,15]
[381545025,1756276240639,-283.0,0.00028938,7]
[381545026,1756276240649,-163.3,0.00028999,15]
[381545027,1756276240659,-535.65,0.00028999,15]
[381545028,1756276240668,-151.0,0.00029,18]
[381545029,1756276240678,-38103.30702684,0.00029005,120]
[381545030,1756276240687,-960.0,0.00029009,2]
[381545031,1756276240697,-219.30172,0.00029063,20]
[381545032,1756276240706,-556.0,0.00029075,2]
[381545033,1756276240716,-163.3,0.00029099,15]
[381545034,1756276240725,-535.65,0.00029099,15]
[381545035,1756276240735,-1000.0,0.00029112,5]
[381545036,1756276240745,-450.0,0.00029116,5]
[381545037,1756276240756,-163.32186066,0.00029199,15]
[381545038,1756276240766,-535.65,0.00029199,15]
[381545039,1756276240776,-151.0,0.000292,17]
[381545040,1756276240786,-5000.0,0.0002923,3]
[381545041,1756276240796,-535.65,0.00029299,15]
[381545042,1756276240805,-12598.49,0.000293,2]
[381545043,1756276240815,-232.59867797,0.000293,3]
[381545044,1756276240824,-556.0,0.00029349,2]
[381545045,1756276240834,-283.0,0.00029385,2]
[381545046,1756276240844,-535.65,0.00029399,15]
[381545047,1756276240854,-535.65,0.00029499,15]
[381545048,1756276240863,-1204.3454986,0.000295,120]
[381545049,1756276240872,-283.0,0.00029516,2]
[381545050,1756276240882,-283.0,0.00029517,2]
[381545051,1756276240892,-225.18697532,0.0002955,2]
[381545052,1756276240902,-1060.0,0.00029557,2]
[381545053,1756276240911,-219.30172,0.00029584,20]
[381545054,1756276240921,-1440.207087,0.00029589,120]
[381545055,1756276240931,-535.65,0.00029599,15]
[381545056,1756276240941,-283.0,0.00029617,2]
[381545057,1756276240952,-556.0,0.00029623,2]
[381545058,1756276240964,-554.163731,0.00029639,2]
[381545059,1756276240974,-550.0,0.00029664,5]
[381545060,1756276240983,-283.0,0.00029692,2]
[381545061,1756276240993,-535.65,0.00029699,15]
[381545062,1756276241003,-736.0,0.00029708,2]
[381545063,1756276241012,-153.0,0.00029724,2]
[381545064,1756276241021,-153.0,0.00029724,2]
[381545065,1756276241031,-153.0,0.00029724,2]
[381545066,1756276241041,-153.0,0.00029724,2]
[381545067,1756276241050,-153.0,0.00029724,2]
[381545068,1756276241061,-153.0,0.00029724,2]
[381545069,1756276241071,-283.0,0.00029726,2]
[381545070,1756276241080,-153.0,0.00029741,2]
[381545071,1756276241090,-153.0,0.00029741,2]
[381545072,1756276241099,-283.0,0.00029756,2]
[381545073,1756276241109,-535.65,0.00029799,15]
[381545074,1756276241118,-4120.69,0.000298,7]
[381545075,1756276241128,-484.0,0.00029806,2]
[381545076,1756276241138,-283.0,0.00029882,2]
[381545077,1756276241149,-556.0,0.00029897,2]
[381545078,1756276241158,-535.65,0.00029899,15]
[381545079,1756276241168,-899.999999,0.000299,2]
[381545080,1756276241178,-199955.4534437,0.00029998,120]
[381545081,1756276241188,-151.0,0.00029998,7]
[381545082,1756276241198,-151.0,0.00029998,7]
[381545083,1756276241209,-151.0,0.00029998,7]
[381545084,1756276241219,-151.0,0.00029998,7]
[381545085,1756276241229,-151.0,0.00029998,7]
[381545086,1756276241239,-601.451442,0.00029998,7]
[381545087,1756276241249,-151.0,0.00029998,7]
[381545089,1756276241259,-601.451442,0.00029998,7]
[381545090,1756276241269,-151.0,0.00029998,7]
[381545092,1756276241279,-601.451442,0.00029998,7]
[381545094,1756276241289,-151.0,0.00029998,7]
[381545096,1756276241299,-601.451442,0.00029998,7]
[381545098,1756276241311,-151.0,0.00029998,7]
[381545100,1756276241320,-151.0,0.00029998,7]
[381545102,1756276241330,-151.0,0.00029998,7]
[381545104,1756276241339,-151.0,0.00029998,7]
[381545106,1756276241349,-638.731712,0.00029998,7]
[381545107,1756276241359,-638.731712,0.00029998,7]
[381545108,1756276241368,-638.731712,0.00029998,7]
[381545109,1756276241377,-638.731712,0.00029998,7]
[381545111,1756276241387,-151.0,0.00029998,7]
[381545113,1756276241400,-151.0,0.00029998,7]
[381545115,1756276241410,-151.0,0.00029998,7]
[381545116,1756276241419,-535.65,0.00029999,15]
[381545118,1756276241430,-6989.83,0.0003,7]
[381545120,1756276241439,-61528.86,0.0003,7]
[381545122,1756276241449,-2392.84664262,0.0003,3]
[381545124,1756276241459,-212.11506658,0.0003,120]
[381545126,1756276241468,-758.92510499,0.0003,120]
[381545128,1756276241478,-6104.97417833,0.0003,30]
[381545130,1756276241487,-253.68533859,0.0003,120]
[381545132,1756276241497,-633.48701771,0.0003,120]
[381545134,1756276241506,-375.76980098,0.0003,120]
[381545137,1756276241524,-417.30639954,0.0003,30]
[381545139,1756276241546,-529.56067766,0.0003,120]